bitfinex/quotes_BTCUSD_20220213
["timestamp","ask_amount","ask_price","bid_price","bid_amount"]
[1644742900076,1.1,42473.0,42472.0,0.20162021]
[1644742900273,2.11242523,42473.0,42472.0,0.02886173]
[1644742900469,2.24738973,42473.0,42472.0,0.02886173]
[1644742900670,2.29738973,42473.0,42472.0,0.02886173]
[1644742902299,2.29738973,42473.0,42472.0,0.0041609]
[1644742903300,2.44738973,42473.0,42472.0,0.0041609]
[1644742904101,2.29738973,42473.0,42472.0,0.0041609]
[1644742904501,2.44738973,42473.0,42472.0,0.0041609]
[1644742904701,2.29738973,42473.0,42472.0,0.0041609]
[1644742906151,1.396167,42472.0,42468.0,0.0011]
[1644742906350,1.396167,42472.0,42460.0,0.0433]
[1644742906351,0.215608,42469.0,42460.0,0.0433]
[1644742906551,0.23616909,42459.0,42449.0,0.41774023]
[1644742906752,0.28886909,42459.0,42449.0,0.41774023]
[1644742907350,0.28886909,42459.0,42455.0,0.015]
[1644742907550,0.28886909,42459.0,42456.0,0.00045874]
[1644742908657,0.28886909,42459.0,42455.0,0.015]
[1644742909301,0.0527,42459.0,42455.0,0.015]
[1644742909503,0.0527,42459.0,42454.0,0.0344]
[1644742909697,0.0527,42459.0,42454.0,0.0044]
[1644742909902,0.0527,42459.0,42452.0,0.330692]
[1644742910299,0.38365942,42463.0,42451.0,0.211]
[1644742910899,0.38365942,42463.0,42451.0,1.459]
[1644742911100,0.37865942,42463.0,42451.0,1.459]
[1644742911402,0.37865942,42463.0,42451.0,0.211]
[1644742911599,0.37365942,42463.0,42451.0,0.211]
[1644742911998,0.36865942,42463.0,42451.0,0.211]
[1644742912398,0.36865942,42463.0,42455.0,0.00043454]
[1644742912850,0.36365942,42463.0,42455.0,0.00043454]
[1644742913251,0.35865942,42463.0,42455.0,0.00043454]
[1644742913451,0.35365942,42463.0,42451.0,1.459]
[1644742913651,0.34865942,42463.0,42457.0,0.00044818]
[1644742914055,0.34365942,42463.0,42457.0,0.00044818]
[1644742914251,0.34312442,42463.0,42457.0,0.00044818]
[1644742914452,0.33812442,42463.0,42457.0,0.00044818]
[1644742914656,0.33812442,42463.0,42451.0,0.211]
[1644742914852,0.33312442,42463.0,42458.0,0.00044818]
[1644742915654,0.32812442,42463.0,42458.0,0.00044818]
[1644742915855,0.32812442,42463.0,42453.0,0.00021948]
[1644742916058,0.32812442,42463.0,42458.0,0.00044817]
[1644742916458,0.4430799,42464.0,42458.0,0.00044817]
[1644742916909,0.4430799,42464.0,42453.0,0.00021948]
[1644742917111,0.4430799,42464.0,42459.0,0.00043599]
[1644742917112,0.38552087,42463.0,42459.0,0.00043599]
[1644742918209,0.38552087,42463.0,42454.0,0.00021948]
[1644742918410,0.38552087,42463.0,42459.0,0.00043599]
[1644742919413,0.38552087,42463.0,42454.0,0.00021948]
[1644742919612,0.38552087,42463.0,42459.0,0.00043599]
[1644742920656,0.38552087,42463.0,42454.0,0.00021948]
[1644742920855,0.38552087,42463.0,42459.0,0.00043777]
[1644742921863,0.38552087,42463.0,42454.0,0.00021948]
[1644742922056,0.38552087,42463.0,42459.0,0.00043777]
[1644742922456,0.54586024,42463.0,42459.0,0.00043777]
[1644742923057,0.54586024,42463.0,42454.0,0.00021948]
[1644742923258,0.54586024,42463.0,42459.0,0.00043777]
[1644742923756,0.38552087,42463.0,42459.0,0.00043777]
[1644742924202,0.38552087,42463.0,42454.0,0.00021948]
[1644742924407,0.156695,42462.0,42459.0,0.00043751]
[1644742924600,0.6047775,42463.0,42459.0,0.00043751]
[1644742924802,0.156695,42461.0,42459.0,0.00043751]
[1644742925301,0.03381926,42462.0,42454.0,0.00021948]
[1644742925500,0.65377781,42463.0,42458.0,0.00043752]
[1644742925701,0.44443387,42463.0,42458.0,0.00043752]
[1644742925901,0.65155289,42463.0,42458.0,0.00043752]
[1644742926100,0.156695,42462.0,42458.0,0.00043752]
[1644742926402,0.6047775,42463.0,42458.0,0.00043752]
[1644742926601,0.6047775,42463.0,42453.0,0.00021948]
[1644742926802,0.20147669,42459.0,42458.0,0.00043752]
[1644742927403,0.60684826,42459.0,42458.0,0.00043752]
[1644742927603,0.64787233,42459.0,42458.0,0.00043752]
[1644742927850,0.64787233,42459.0,42453.0,0.00021948]
[1644742928051,0.64787233,42459.0,42452.0,0.00021948]
[1644742928251,0.64787233,42459.0,42451.0,0.211]
[1644742928252,0.20147669,42459.0,42451.0,0.211]
[1644742928851,0.26180191,42456.0,42451.0,0.211]
[1644742929053,0.26180191,42456.0,42451.0,0.01]
[1644742929454,0.37835732,42455.0,42451.0,0.01]
[1644742929852,0.38055084,42455.0,42451.0,0.01]
[1644742930054,0.26180191,42456.0,42451.0,0.01]
[1644742931705,0.30488739,42456.0,42451.0,0.01045772]
[1644742932211,0.26180191,42456.0,42451.0,0.01045772]
[1644742932606,0.26180191,42456.0,42451.0,0.01]
[1644742932806,0.26180191,42456.0,42451.0,0.01045772]
[1644742933705,0.26180191,42456.0,42451.0,0.01]
[1644742933908,0.26180191,42456.0,42451.0,0.01045772]
[1644742934710,0.26180191,42456.0,42451.0,0.0106772]
[1644742934908,0.26180191,42456.0,42451.0,0.01021948]
[1644742935108,0.26180191,42456.0,42451.0,0.01065351]
[1644742936156,0.26180191,42456.0,42451.0,0.01021948]
[1644742936157,0.43936043,42455.0,42451.0,0.01021948]
[1644742936355,0.03638511,42454.0,42451.0,0.01065351]
[1644742937156,0.19187723,42452.0,42451.0,0.01065351]
[1644742937359,0.39455823,42455.0,42451.0,0.01021948]
[1644742937557,0.26180191,42456.0,42451.0,0.01021948]
[1644742938857,0.26180191,42456.0,42451.0,0.01065697]
[1644742939305,0.26180191,42456.0,42451.0,0.0105414]
[1644742939704,0.38132941,42458.0,42451.0,0.01010391]
[1644742939705,0.05,42458.0,42451.0,0.01010391]
[1644742939907,0.05,42458.0,42451.0,0.0105414]
[1644742940105,0.38007519,42458.0,42451.0,0.0105414]
[1644742940305,0.38503016,42458.0,42451.0,0.0105414]
[1644742940706,0.29980975,42457.0,42451.0,0.0105414]
[1644742940907,0.29980975,42457.0,42451.0,0.01010391]
[1644742941107,0.29980975,42457.0,42452.0,0.00043748]
[1644742941409,0.29980975,42457.0,42452.0,0.00065696]
[1644742942210,0.29980975,42457.0,42452.0,0.00021948]
[1644742942414,0.29980975,42457.0,42452.0,0.00043697]
[1644742942611,0.29980975,42457.0,42452.0,0.00065645]
[1644742943450,0.29980975,42457.0,42452.0,0.00021948]
[1644742943651,0.29980975,42457.0,42452.0,0.00043697]
[1644742943851,0.29980975,42457.0,42452.0,0.00065645]
[1644742944252,0.29980975,42458.0,42452.0,0.00065645]
[1644742944650,0.29980975,42458.0,42452.0,0.00021948]
[1644742944854,0.50523763,42460.0,42453.0,0.00043697]
[1644742945056,0.34488064,42460.0,42453.0,0.00043697]
[1644742945252,0.29980975,42460.0,42453.0,0.19217236]
[1644742945452,0.29980975,42460.0,42453.0,0.19195288]
[1644742945853,0.29980975,42460.0,42453.0,0.19151591]
[1644742946053,0.29980975,42460.0,42454.0,0.00043703]
[1644742946253,0.29980975,42460.0,42454.0,0.00065651]
[1644742947004,0.29980975,42460.0,42454.0,0.00021948]
[1644742947206,0.29980975,42460.0,42455.0,0.00043703]
[1644742948209,0.29980975,42459.0,42454.0,0.00021948]
[1644742948407,0.29980975,42459.0,42455.0,0.00043703]
[1644742949408,0.29980975,42459.0,42454.0,0.00021948]
[1644742949608,0.29980975,42459.0,42455.0,0.00043702]
[1644742949810,0.29980975,42459.0,42455.0,0.0006565]
[1644742950214,0.29980975,42459.0,42455.0,0.00043702]
[1644742950659,0.29980975,42459.0,42454.0,0.00021948]
[1644742950859,0.29980975,42459.0,42455.0,0.00043702]
[1644742951862,0.29980975,42459.0,42454.0,0.00021948]
[1644742952063,0.29980975,42459.0,42455.0,0.00043702]
[1644742952262,0.29480975,42459.0,42455.0,0.00043702]
[1644742952867,0.04080527,42459.0,42455.0,0.00043702]
[1644742953064,0.04080527,42459.0,42452.0,0.00015948]
[1644742953065,0.04247656,42459.0,42452.0,0.00015948]
[1644742953263,0.84001783,42460.0,42455.0,0.00043702]
[1644742953662,0.79084001,42460.0,42455.0,0.00043702]
[1644742953865,0.83718728,42460.0,42455.0,0.00043702]
[1644742954108,0.83718728,42460.0,42452.0,0.00015948]
[1644742954304,0.83718728,42460.0,42455.0,0.00043702]
[1644742955004,0.25837758,42457.0,42455.0,0.00043702]
[1644742955508,0.25837758,42457.0,42454.0,0.00043703]
[1644742956507,0.25837758,42457.0,42452.0,0.00015948]
[1644742956711,0.25837758,42457.0,42453.0,0.00043703]
[1644742957855,0.25837758,42457.0,42452.0,0.00015948]
[1644742958159,0.25837758,42457.0,42453.0,0.00043704]
[1644742958960,0.25837758,42457.0,42452.0,0.00015948]
[1644742959158,0.25837758,42457.0,42451.0,0.00988443]
[1644742959159,0.25837758,42457.0,42453.0,0.00043704]
[1644742959356,0.16034393,42459.0,42453.0,0.00043704]
[1644742959757,0.83636708,42460.0,42453.0,0.00043704]
[1644742959958,0.16034393,42459.0,42453.0,0.00043704]
[1644742960156,0.61469947,42460.0,42452.0,0.00015948]
[1644742960357,0.29990892,42458.0,42454.0,0.00043702]
[1644742960559,0.29990892,42457.0,42454.0,0.00043702]
[1644742961357,0.29990892,42457.0,42452.0,0.00015948]
[1644742961611,0.29990892,42457.0,42453.0,0.00043703]
[1644742962605,0.29990892,42457.0,42452.0,0.00015948]
[1644742962805,0.29990892,42457.0,42453.0,0.00043704]
[1644742963812,0.29990892,42457.0,42452.0,0.00015948]
[1644742964008,0.29990892,42457.0,42453.0,0.00043704]
[1644742964608,0.29990892,42456.0,42453.0,0.00043704]
[1644742965008,0.29990892,42456.0,42452.0,0.00015948]
[1644742965354,0.29990892,42456.0,42452.0,0.00043704]
[1644742965553,0.29990892,42456.0,42452.0,0.00059652]
[1644742966156,0.29990892,42456.0,42452.0,0.00015948]
[1644742966456,0.29990892,42456.0,42452.0,0.00043704]
[1644742966657,0.29990892,42456.0,42452.0,0.00059652]
[1644742967354,0.29990892,42456.0,42452.0,0.00015948]
[1644742967554,0.29990892,42456.0,42452.0,0.00043704]
[1644742967755,0.29990892,42456.0,42452.0,0.00059652]
[1644742968455,0.29990892,42456.0,42452.0,0.05059652]
[1644742968659,0.29990892,42456.0,42452.0,0.05015948]
[1644742968857,0.29990892,42456.0,42452.0,0.05059652]
[1644742969711,0.29990892,42456.0,42452.0,0.05015948]
[1644742969905,0.29990892,42456.0,42452.0,0.05059652]
[1644742971006,0.29990892,42456.0,42452.0,0.05015948]
[1644742971207,0.29990892,42456.0,42452.0,0.05059652]
[1644742973454,0.29990892,42456.0,42452.0,0.05015948]
[1644742973654,0.29990892,42456.0,42452.0,0.05059652]
[1644742973859,0.29990892,42456.0,42452.0,0.05043704]
[1644742974057,0.29990892,42456.0,42452.0,0.05065529]
[1644742974656,0.29990892,42456.0,42452.0,0.05021825]
[1644742974857,0.29990892,42456.0,42452.0,0.05065529]
[1644742975459,0.29990892,42455.0,42452.0,0.05065529]
[1644742975861,0.29990892,42455.0,42452.0,0.05021825]
[1644742976157,0.29990892,42455.0,42452.0,0.05011722]
[1644742977804,0.29990892,42454.0,42452.0,0.05011722]
[1644742978507,0.34991147,42455.0,42452.0,0.0451055]
[1644742978912,0.38554102,42454.0,42452.0,0.0451055]
[1644742979307,0.34991147,42455.0,42452.0,0.0451055]
[1644742979509,0.29994561,42453.0,42452.0,0.0451055]
[1644742980110,0.29984907,42453.0,42452.0,0.0451055]
[1644742980360,0.53875456,42454.0,42452.0,0.0451055]
[1644742980662,0.54098007,42454.0,42452.0,0.0451055]
[1644742980861,0.38063614,42454.0,42452.0,0.0451055]
[1644742981661,0.34991147,42455.0,42452.0,0.0451055]
[1644742983164,0.34991147,42456.0,42452.0,0.0451055]
[1644742984109,0.37968503,42455.0,42452.0,0.0451055]
[1644742984307,0.7295965,42455.0,42452.0,0.0451055]
[1644742984509,0.34991147,42455.0,42452.0,0.04554254]
[1644742984708,0.34991147,42456.0,42452.0,0.04554254]
[1644742984908,0.72973305,42455.0,42452.0,0.04554254]
[1644742985508,0.72973305,42455.0,42452.0,0.0451055]
[1644742986310,0.37982158,42455.0,42452.0,0.0451055]
[1644742986910,0.34991147,42456.0,42452.0,0.0451055]
[1644742987966,0.34991147,42456.0,42452.0,0.04554254]
[1644742988167,0.30004003,42453.0,42452.0,0.04554254]
[1644742988768,0.30004003,42454.0,42452.0,0.04554254]
[1644742988968,0.30004003,42454.0,42452.0,0.0451055]
[1644742991911,0.30004003,42453.0,42452.0,0.0451055]
[1644742992609,0.25,42453.0,42452.0,0.0451055]
[1644742997558,0.25,42453.0,42452.0,0.0351055]
[1644742998261,0.34991147,42456.0,42452.0,0.0351055]
[1644742998456,0.34991147,42456.0,42452.0,0.03159496]
[1644742998857,0.34991147,42456.0,42452.0,0.032032]
[1644742999524,0.38540127,42455.0,42452.0,0.032032]
[1644742999723,0.38540127,42455.0,42452.0,0.03159496]
[1644742999724,0.73531274,42455.0,42452.0,0.03159496]
[1644742999921,0.34991147,42455.0,42452.0,0.03159496]
[1644743000522,0.29999955,42453.0,42452.0,0.03159496]
[1644743001326,0.03795617,42454.0,42452.0,0.03159496]
[1644743001526,0.03795617,42454.0,42452.0,0.02159496]
[1644743001527,0.22229125,42453.0,42452.0,0.02159496]
[1644743002130,0.57220272,42453.0,42452.0,0.02159496]
[1644743002325,0.95179645,42453.0,42452.0,0.02159496]
[1644743002726,1.11214038,42453.0,42452.0,0.02159496]
[1644743002954,1.26883538,42453.0,42452.0,0.02159496]
[1644743003354,1.11214038,42453.0,42452.0,0.02159496]
[1644743003555,1.26883538,42453.0,42452.0,0.02159496]
[1644743004156,1.06922936,42453.0,42452.0,0.02159496]
[1644743004358,1.06922936,42453.0,42449.0,0.0022]
[1644743004359,1.1,42450.0,42449.0,0.05]
[1644743004559,1.1,42450.0,42438.0,0.0033]
[1644743004560,1.78531221,42450.0,42438.0,0.0033]
[1644743004760,0.29995091,42442.0,42440.0,0.00021826]
[1644743004955,0.0527,42441.0,42438.0,0.00351826]
[1644743005256,0.24995508,42440.0,42438.0,0.00351826]
[1644743005455,0.2878794,42441.0,42438.0,0.00351826]
[1644743005456,0.0527,42439.0,42438.0,0.00351826]
[1644743005655,0.2351794,42441.0,42439.0,0.13055871]
[1644743005854,0.0527,42440.0,42439.0,0.13077697]
[1644743006259,0.30265508,42440.0,42439.0,0.13077697]
[1644743006456,0.0527,42440.0,42439.0,0.13077697]
[1644743010856,0.0527,42440.0,42439.0,0.13055871]
[1644743011254,0.0527,42440.0,42439.0,0.12055871]
[1644743016107,0.42612295,42440.0,42439.0,0.12055871]
[1644743016308,0.0527,42440.0,42439.0,0.12055871]
[1644743016910,0.0527,42440.0,42439.0,0.45125071]
[1644743017110,0.16075124,42446.0,42439.0,0.12055871]
[1644743017310,0.1004327,42446.0,42439.0,0.12055871]
[1644743017708,0.0004327,42446.0,42439.0,0.12055871]
[1644743017958,0.20782084,42447.0,42439.0,0.12055871]
[1644743018158,0.00043271,42446.0,42440.0,0.00043277]
[1644743019260,0.00043271,42446.0,42441.0,0.00043276]
[1644743020260,0.20782084,42447.0,42440.0,0.00021802]
[1644743020459,0.00042723,42446.0,42441.0,0.00042728]
[1644743021461,0.20782084,42447.0,42440.0,0.00021802]
[1644743021710,0.00042723,42446.0,42441.0,0.00042728]
[1644743022716,0.26675584,42447.0,42440.0,0.00021802]
[1644743022912,0.04249808,42446.0,42441.0,0.00042728]
[1644743023211,0.04249808,42446.0,42441.0,0.00036728]
[1644743023412,0.00042723,42446.0,42441.0,0.00036728]
[1644743023813,0.42707438,42447.0,42440.0,0.00021802]
[1644743024013,0.42707438,42447.0,42439.0,0.12077673]
[1644743024512,0.08642237,42446.0,42439.0,0.12077673]
[1644743024712,0.38514058,42445.0,42439.0,0.12077673]
[1644743025013,0.42601368,42445.0,42439.0,0.12077673]
[1644743025657,0.38514058,42445.0,42439.0,0.12077673]
[1644743026456,0.42212669,42445.0,42439.0,0.12077673]
[1644743026959,0.04404056,42444.0,42439.0,0.12077673]
[1644743027763,0.04404056,42444.0,42439.0,0.12124297]
[1644743027959,0.156695,42442.0,42439.0,0.12124297]
[1644743028158,0.04404056,42444.0,42439.0,0.12124297]
[1644743028359,0.03551707,42443.0,42439.0,0.12124297]
[1644743028559,0.156695,42442.0,42439.0,0.12124297]
[1644743028764,0.156695,42442.0,42439.0,0.12077673]
[1644743029113,0.156695,42440.0,42439.0,0.12124297]
[1644743029313,0.54016626,42440.0,42439.0,0.12124297]
[1644743029813,0.54016626,42440.0,42439.0,0.12077673]
[1644743031916,0.156695,42440.0,42439.0,0.12077673]
[1644743032317,0.52956915,42440.0,42439.0,0.12077673]
[1644743032958,0.5751197,42440.0,42439.0,0.12077673]
[1644743033156,0.52956915,42440.0,42439.0,0.12077673]
[1644743037504,0.37287415,42440.0,42439.0,0.12077673]
[1644743037703,0.156695,42440.0,42439.0,0.12077673]
[1644743042961,0.5324079,42440.0,42439.0,0.12077673]
[1644743045010,0.57126475,42440.0,42439.0,0.12067379]
[1644743045913,0.5324079,42440.0,42439.0,0.12067379]
[1644743046417,0.5851079,42440.0,42439.0,0.12067379]
[1644743046611,0.88506238,42440.0,42439.0,0.12067379]
[1644743048562,0.74552727,42440.0,42439.0,0.12067379]
[1644743048758,0.5851079,42440.0,42439.0,0.12067379]
[1644743049364,0.93505479,42440.0,42439.0,0.12067379]
[1644743049557,1.09547641,42440.0,42439.0,0.12067379]
[1644743051163,0.80268235,42440.0,42439.0,0.12067379]
[1644743051459,0.64226073,42440.0,42439.0,0.12067379]
[1644743051720,0.90268235,42440.0,42439.0,0.12067379]
[1644743051910,0.74226073,42440.0,42439.0,0.12067379]
[1644743052109,0.90268235,42440.0,42439.0,0.12067379]
[1644743052311,0.84226073,42440.0,42439.0,0.12067379]
[1644743052610,1.00268235,42440.0,42439.0,0.12067379]
[1644743052810,0.84226073,42440.0,42439.0,0.12067379]
[1644743053011,1.00268235,42440.0,42439.0,0.12067379]
[1644743053611,1.00268235,42440.0,42439.0,0.11067379]
[1644743054212,0.80268235,42440.0,42439.0,0.11067379]
[1644743054613,0.64226073,42440.0,42439.0,0.11067379]
[1644743054813,0.80268235,42440.0,42439.0,0.11067379]
[1644743055013,0.64226073,42440.0,42439.0,0.11067379]
[1644743055214,0.80268235,42440.0,42439.0,0.11067379]
[1644743055455,0.64226073,42440.0,42439.0,0.11067379]
[1644743055654,0.80268235,42440.0,42439.0,0.11067379]
[1644743055854,0.64226073,42440.0,42439.0,0.11067379]
[1644743056056,0.80268235,42440.0,42439.0,0.11067379]
[1644743056358,0.64226073,42440.0,42439.0,0.11067379]
[1644743056554,0.80268235,42440.0,42439.0,0.11067379]
[1644743056754,0.64226073,42440.0,42439.0,0.11067379]
[1644743056955,0.80268235,42440.0,42439.0,0.11067379]
[1644743057154,0.64226073,42440.0,42439.0,0.11067379]
[1644743057357,0.80268235,42440.0,42439.0,0.11067379]
[1644743057855,0.64226073,42440.0,42439.0,0.11067379]
[1644743058156,0.80268235,42440.0,42439.0,0.11067379]
[1644743058358,0.64226073,42440.0,42439.0,0.11067379]
[1644743058557,0.80268235,42440.0,42439.0,0.11067379]
[1644743058759,0.64226073,42440.0,42439.0,0.11067379]
[1644743058960,0.80268235,42440.0,42439.0,0.11067379]
[1644743059217,0.64226073,42440.0,42439.0,0.11067379]
[1644743059417,0.80268235,42440.0,42439.0,0.11067379]
[1644743059618,0.64226073,42440.0,42439.0,0.11067379]
[1644743059817,0.80268235,42440.0,42439.0,0.11067379]
[1644743060017,0.64226073,42440.0,42439.0,0.11067379]
[1644743060217,0.80268235,42440.0,42439.0,0.11067379]
[1644743060418,0.64226073,42440.0,42439.0,0.11067379]
[1644743060618,0.80268235,42440.0,42439.0,0.11067379]
[1644743060818,0.64226073,42440.0,42439.0,0.11067379]
[1644743061018,0.80268235,42440.0,42439.0,0.11067379]
[1644743061219,0.64226073,42440.0,42439.0,0.11067379]
[1644743061418,0.80268235,42440.0,42439.0,0.11067379]
[1644743061620,0.64226073,42440.0,42439.0,0.11067379]
[1644743061819,0.80268235,42440.0,42439.0,0.11067379]
[1644743062017,0.64226073,42440.0,42439.0,0.11067379]
[1644743062218,0.84226073,42440.0,42439.0,0.11067379]
[1644743062620,1.00268235,42440.0,42439.0,0.11067379]
[1644743064070,0.80268235,42440.0,42439.0,0.11067379]
[1644743064466,0.64226073,42440.0,42439.0,0.11067379]
[1644743064668,0.80268235,42440.0,42439.0,0.11067379]
[1644743064868,0.74226073,42440.0,42439.0,0.11067379]
[1644743065067,0.90268235,42440.0,42439.0,0.11067379]
[1644743065268,0.74226073,42440.0,42439.0,0.11067379]
[1644743065468,0.90268235,42440.0,42439.0,0.11067379]
[1644743065667,0.74226073,42440.0,42439.0,0.11067379]
[1644743065869,0.90268235,42440.0,42439.0,0.11067379]
[1644743066267,0.74226073,42440.0,42439.0,0.11067379]
[1644743066472,0.90268235,42440.0,42439.0,0.11067379]
[1644743067508,1.00268235,42440.0,42439.0,0.11067379]
[1644743074712,0.90268235,42440.0,42439.0,0.11067379]
[1644743076315,1.00268235,42440.0,42439.0,0.11067379]
[1644743077960,1.00268235,42440.0,42439.0,0.11061332]
[1644743093760,0.62696945,42440.0,42439.0,0.11061332]
[1644743094161,0.46654783,42440.0,42439.0,0.11061332]
[1644743094762,0.62696945,42440.0,42439.0,0.11061332]
[1644743094962,1.05234047,42440.0,42439.0,0.08144657]
[1644743095363,0.62696945,42440.0,42439.0,0.08144657]
[1644743095763,0.46654783,42440.0,42439.0,0.08144657]
[1644743095963,0.46654783,42440.0,42439.0,0.08122855]
[1644743095964,0.86687688,42440.0,42439.0,0.08122855]
[1644743096166,0.89191885,42440.0,42439.0,0.08122855]
[1644743096466,0.89191885,42440.0,42428.0,0.04858807]
[1644743096467,0.25,42436.0,42428.0,0.04858807]
[1644743096727,0.25,42436.0,42427.0,0.4340712]
[1644743096728,0.6593,42429.0,42427.0,0.4340712]
[1644743096923,0.6593,42429.0,42420.0,0.2074]
[1644743096924,0.20764977,42427.0,42420.0,0.2074]
[1644743097124,0.30016777,42422.0,42420.0,0.2074]
[1644743097322,0.50956277,42422.0,42416.0,0.0011]
[1644743097922,0.209395,42422.0,42416.0,0.0011]
[1644743098521,0.209395,42422.0,42419.0,0.00026066]
[1644743098726,0.71289946,42422.0,42419.0,0.00026066]
[1644743098922,0.156695,42418.0,42415.0,0.00110066]
[1644743099122,1.1,42419.0,42413.0,0.00114279]
[1644743099123,1.1,42416.0,42413.0,0.00114279]
[1644743099323,0.25001621,42414.0,42413.0,0.00014279]
[1644743099522,0.25001621,42414.0,42411.0,0.0143]
[1644743099523,0.156695,42413.0,42411.0,0.0143]
[1644743099723,0.65879938,42413.0,42411.0,0.0143]
[1644743099924,0.5,42412.0,42411.0,0.0054]
[1644743100124,0.709395,42412.0,42411.0,0.0054]
[1644743100391,0.0527,42412.0,42411.0,0.0054]
[1644743100585,0.36981662,42412.0,42411.0,0.0054]
[1644743100792,0.21312162,42412.0,42411.0,0.0054]
[1644743100986,0.0527,42412.0,42411.0,0.0054]
[1644743102389,0.00045939,42415.0,42411.0,0.336092]
[1644743102586,0.00045939,42415.0,42414.0,0.330692]
[1644743102787,0.00045939,42415.0,42413.0,0.12334434]
[1644743103186,0.20919941,42421.0,42413.0,0.12334434]
[1644743103386,0.00045939,42416.0,42413.0,0.12334434]
[1644743103785,0.00036372,42416.0,42413.0,0.12334434]
[1644743104418,0.45902149,42421.0,42413.0,0.12334434]
[1644743104620,0.156695,42420.0,42413.0,0.12334434]
[1644743104819,0.0527,42416.0,42413.0,0.12334434]
[1644743105823,0.24982208,42421.0,42413.0,0.12334434]
[1644743106022,0.156695,42420.0,42413.0,0.12334434]
[1644743106222,0.24982208,42421.0,42413.0,0.12334434]
[1644743106422,0.156695,42420.0,42413.0,0.12334434]
[1644743106621,0.24982208,42421.0,42413.0,0.12334434]
[1644743107121,0.30252208,42422.0,42413.0,0.12334434]
[1644743107723,0.24982208,42422.0,42413.0,0.12334434]
[1644743108168,0.0004597,42420.0,42413.0,0.12334434]
[1644743109266,0.19981076,42419.0,42413.0,0.12334434]
[1644743109464,0.0004597,42419.0,42413.0,0.12334434]
[1644743110466,0.19981076,42420.0,42413.0,0.12334434]
[1644743110668,0.00045971,42418.0,42413.0,0.12334434]
[1644743111068,2.07190952,42414.0,42413.0,0.12334434]
[1644743111466,0.00045971,42418.0,42413.0,0.12334434]
[1644743111717,0.0004597,42418.0,42413.0,0.12334434]
[1644743111921,0.0004597,42418.0,42413.0,0.12355917]
[1644743112316,0.0004597,42418.0,42416.0,0.330692]
[1644743112518,0.0004597,42418.0,42417.0,0.330692]
[1644743112718,0.36031608,42424.0,42413.0,1.42155917]
[1644743112719,0.19981076,42423.0,42413.0,1.42155917]
[1644743112918,0.19981076,42423.0,42414.0,0.00021483]
[1644743113120,0.0004597,42420.0,42414.0,0.00021483]
[1644743113322,0.0004597,42420.0,42419.0,0.21539706]
[1644743113920,0.19981076,42424.0,42419.0,0.21539706]
[1644743114120,0.00045968,42422.0,42419.0,0.21539706]
[1644743114519,0.00045968,42422.0,42415.0,1.248]
[1644743114520,0.00045968,42422.0,42416.0,0.39477993]
[1644743114723,0.00045968,42422.0,42414.0,0.00021483]
[1644743114925,0.00045968,42422.0,42413.0,0.49905757]
[1644743115124,0.34243032,42427.0,42413.0,0.49905757]
[1644743115125,0.29997916,42426.0,42413.0,0.49905757]
[1644743115381,0.67191442,42425.0,42416.0,0.22464345]
[1644743115582,0.0004597,42420.0,42416.0,0.22464345]
[1644743116383,0.29997916,42426.0,42416.0,0.22464345]
[1644743116683,0.00045969,42420.0,42416.0,0.22464345]
[1644743117686,0.4091747,42427.0,42416.0,0.22464345]
[1644743117687,0.156695,42425.0,42416.0,0.22464345]
[1644743117885,0.00045969,42420.0,42416.0,0.22464345]
[1644743118785,0.156695,42425.0,42416.0,0.22464345]
[1644743118986,0.00045969,42420.0,42416.0,0.22464345]
[1644743119917,0.29997916,42427.0,42416.0,0.22464345]
[1644743120117,0.20970455,42429.0,42416.0,0.22464345]
[1644743120118,0.29997916,42428.0,42416.0,0.22464345]
[1644743120316,0.00045969,42420.0,42416.0,0.22464345]
[1644743121218,0.156695,42425.0,42416.0,0.22464345]
[1644743121427,0.00045969,42420.0,42416.0,0.22464345]
[1644743122317,0.29997916,42426.0,42416.0,0.22464345]
[1644743122518,0.156695,42425.0,42416.0,0.22464345]
[1644743122718,0.00045969,42420.0,42416.0,0.22464345]
[1644743123577,0.156695,42425.0,42417.0,0.08]
[1644743123774,0.156695,42425.0,42417.0,0.06482799]
[1644743123975,0.29997916,42426.0,42417.0,0.06482799]
[1644743123976,0.00045969,42420.0,42417.0,0.06482799]
[1644743124773,0.156695,42423.0,42417.0,0.06482799]
[1644743124975,0.00045969,42421.0,42417.0,0.06482799]
[1644743125474,0.156695,42420.0,42417.0,0.06482799]
[1644743125872,0.00045969,42421.0,42417.0,0.06482799]
[1644743126072,0.156695,42422.0,42417.0,0.06482799]
[1644743126277,0.00045969,42421.0,42417.0,0.06482799]
[1644743126715,0.24947395,42423.0,42417.0,0.06482799]
[1644743130477,0.30217395,42423.0,42417.0,0.06482799]
[1644743131076,0.30263362,42423.0,42417.0,0.06482799]
[1644743131480,0.05315967,42423.0,42417.0,0.06482799]
[1644743132076,0.0527,42423.0,42417.0,0.06482799]
[1644743132277,0.05315967,42423.0,42417.0,0.06482799]
[1644743133277,0.0527,42423.0,42417.0,0.06482799]
[1644743133479,0.05315967,42423.0,42417.0,0.06482799]
[1644743134316,0.0527,42423.0,42417.0,0.06482799]
[1644743134714,0.05315967,42423.0,42417.0,0.06482799]
[1644743135116,0.05315967,42423.0,42417.0,0.43161059]
[1644743135515,0.35267916,42423.0,42420.0,0.06461316]
[1644743135717,0.24977734,42421.0,42420.0,0.06461316]
[1644743135917,0.0527,42423.0,42420.0,0.42529896]
[1644743135918,0.24977734,42422.0,42420.0,0.42529896]
[1644743136123,0.0527,42422.0,42421.0,0.06461316]
[1644743136319,0.00045967,42423.0,42422.0,0.330692]
[1644743136519,0.00045967,42423.0,42422.0,0.83288887]
[1644743136731,0.24977734,42425.0,42422.0,0.83288887]
[1644743136917,0.24994458,42425.0,42424.0,0.06461316]
[1644743137317,0.24994458,42425.0,42424.0,0.39551999]
[1644743137519,0.00016724,42425.0,42424.0,0.06482799]
[1644743137718,0.00016724,42425.0,42424.0,0.42954883]
[1644743137965,0.29997916,42427.0,42424.0,0.06482799]
[1644743138164,0.24985231,42425.0,42424.0,0.06482799]
[1644743138366,0.24985231,42425.0,42424.0,0.43309812]
[1644743138867,0.30043937,42427.0,42424.0,0.43309812]
[1644743139266,0.29997916,42427.0,42424.0,0.43309812]
[1644743139468,0.29997916,42426.0,42424.0,0.16686112]
[1644743139664,0.29997916,42426.0,42424.0,0.330692]
[1644743140063,0.29997916,42426.0,42425.0,0.330692]
[1644743140263,0.29997916,42426.0,42424.0,0.330692]
[1644743141821,0.29997916,42426.0,42425.0,0.56889653]
[1644743142819,0.29997916,42427.0,42425.0,0.23820453]
[1644743143018,0.29997916,42427.0,42423.0,0.48763655]
[1644743143219,0.24995304,42425.0,42424.0,0.330692]
[1644743143819,0.29997916,42427.0,42424.0,0.06670739]
[1644743144019,0.35019573,42429.0,42424.0,0.331027]
[1644743144020,0.29997916,42426.0,42424.0,0.331027]
[1644743144219,0.29997916,42426.0,42425.0,0.331027]